Cogmind - Beta 16 *** ADVENTURER MODE // 2025.12.20 @ 00:11:51 Player: Lukysa Result: Destroyed by G-67 Veteran with Plasma Rifle Performance ------------- Evolutions (6) 3000 Regions Visited (16) 3200 Robots Destroyed (192) 960 Value Destroyed (8025) 8025 Prototype IDs (8) 160 Alien Tech Used (1) 200 Bonus (2249) 2249 TOTAL SCORE: 17794 Bonus ------- High Alert Combat Kills 541 Follower Combat Kills 609 Entered Garrisons 200 Used RIF Installer 500 Entered DSFs 500 Friendly Fire -101 Cogmind --------- Core Integrity 0/1150 Matter 111/300 Energy 100/100 System Corruption 13% Temperature Cool (0) Movement Core (50) Location -3/Proximity Caves Parts ------- > --- POWER (2) -------- (None) > --- PROPULSION (5) --- (None) > --- UTILITY (8) ------ (None) > --- WEAPON (4) ------- (None) > --- INVENTORY (5) ---- High-capacity Matter Pod (200) Matter Compressor (250) Peak State ------------ > --- POWER ------------ Light Antimatter Reactor Particle Reactor > --- PROPULSION ------- Medium Treads Spiked Heavy Treads Spiked Heavy Treads > --- UTILITY ---------- Advanced Heat Sink Advanced Heat Sink Advanced Heat Sink Huge Storage Unit Matter Compressor Improved Focal Shield Hacking Suite Recalibrator > --- WEAPON ----------- Barrage Gun Coil Gun KE Penetrator Magnetic Acceleration Cannon > --- INVENTORY -------- Neutrino Core Medium Treads Large Storage Unit High-capacity Matter Pod Tactical Coordination Suite Heavy Armor Plating Advanced Thermal Shield Remote Shield Barrage Gun Barrage Gun Barrage Gun Barrage Gun Barrage Gun Barrage Gun Barrage Gun [Rating: 105] Favorites ----------- Power Light Nuclear Core Engine Light Ion Engine Power Core Light Nuclear Core Reactor Antimatter Reactor Propulsion Light Treads Treads Light Treads Wheel Compact Wheel Utility Large Storage Unit Device Advanced Heat Sink Storage Large Storage Unit Processor Improved Targeting Computer Hackware Hacking Suite Protection Improved Utility Shielding Weapon Coil Gun Energy Gun Advanced Beam Rifle Energy Cannon Beam Cannon Ballistic Gun Coil Gun Ballistic Cannon Assault Cannon Launcher Grenade Launcher Build | -11 -10 -10 -10 -9 -8 -7 -7 -6 -6 -5 -5 -4 -4 -4 -4 -3 ------- Run | Yrd Mat Min Exi Min Mat Fac DSF Fac Ext Fac Gar Fac Upp Upp War Pro Slots Evolved 12 | . . . . . 4 2 . 2 . 2 . 2 . . . . Power 1 | . . . . . . 1 . . . . . . . . . . Propulsion 3 | . . . . . 1 . . 1 . 1 . . . . . . Utility 6 | . . . . . 2 1 . 1 . . . 2 . . . . Weapon 2 | . . . . . 1 . . . . 1 . . . . . . Parts Attached 140 | 6 8 . . 5 27 11 3 1 9 3 5 11 5 25 2 19 Power 23 | 1 2 . . 2 6 2 . . 2 1 1 1 . 3 . 2 Engine 12 | 1 2 . . 2 4 1 . . 2 . . . . . . . Core 6 | . . . . . 2 1 . . . 1 1 1 . . . . Reactor 5 | . . . . . . . . . . . . . . 3 . 2 Propulsion 26 | 2 . . . 2 7 . . . 2 2 2 . 3 4 . 2 Treads 25 | 2 . . . 2 7 . . . 2 2 2 . 2 4 . 2 Leg . | . . . . . . . . . . . . . . . . . Wheel 1 | . . . . . . . . . . . . . 1 . . . Hover . | . . . . . . . . . . . . . . . . . Flight . | . . . . . . . . . . . . . . . . . Utility 39 | 1 3 . . . 5 4 . 1 1 . 1 7 2 12 . 2 Device 22 | . . . . . 2 2 . 1 . . . 6 . 10 . 1 Storage 6 | 1 2 . . . 1 . . . . . 1 . 1 . . . Processor 2 | . 1 . . . 1 . . . . . . . . . . . Hackware 3 | . . . . . . . . . 1 . . . 1 1 . . Protection 6 | . . . . . 1 2 . . . . . 1 . 1 . 1 Artifact . | . . . . . . . . . . . . . . . . . Weapon 52 | 2 3 . . 1 9 5 3 . 4 . 1 3 . 6 2 13 Energy Gun 14 | . . . . . 4 1 . . . . . . . . . 9 Energy Cannon 4 | . 1 . . . 2 1 . . . . . . . . . . Ballistic Gun 23 | 2 1 . . 1 3 1 . . 1 . 1 2 . 5 2 4 Ballistic Cannon 8 | . . . . . . 2 3 . 2 . . 1 . . . . Launcher 3 | . 1 . . . . . . . 1 . . . . 1 . . Special Weapon . | . . . . . . . . . . . . . . . . . Impact Weapon . | . . . . . . . . . . . . . . . . . Slashing Weapon . | . . . . . . . . . . . . . . . . . Piercing Weapon . | . . . . . . . . . . . . . . . . . Special Melee Weapon . | . . . . . . . . . . . . . . . . . Unidentified Prototypes 9 | . . . . . 5 2 . . . . . 1 . 1 . . Corrupted Parts 3 | . . . . . . . . . 1 . . . . . . 2 System Corruption 8 | . . . . . . . . . 3 . . . . . . 5 Parts Lost 83 | . . . . 5 7 . . . 4 1 1 2 3 21 2 37 Power 12 | . . . . 2 1 . . . 1 . . . . 3 . 5 Propulsion 22 | . . . . 2 3 . . . 2 1 1 2 3 4 . 4 Utility 20 | . . . . . . . . . 1 . . . . 9 . 10 Weapon 29 | . . . . 1 3 . . . . . . . . 5 2 18 Highest Loss Streak 30 | . . . . 3 4 . . . 4 1 1 1 2 13 2 30 To Critical Strikes 5 | . . . . 1 . . . . . . . . . . 1 3 Average Backups 13 | 2 10 14 14 13 13 13 13 14 13 13 14 14 14 12 15 15 Power 2 | 1 2 3 3 2 2 2 2 2 2 2 2 2 1 1 1 2 Propulsion . | . . 1 1 . . . . . . . . . . . 1 . Utility 8 | . 5 8 8 7 8 8 9 8 7 7 8 9 10 9 7 5 Weapon 2 | . 2 2 2 1 1 2 2 3 3 4 4 3 2 2 6 8 Tool/Special . | . . . . . . . . . . . . . . . . . Unused Backups 32 | . 2 1 1 5 13 . 3 1 1 . 2 1 2 . . . Power 9 | . . . 1 2 5 . . . . . 1 . . . . . Propulsion . | . . . . . . . . . . . . . . . . . Utility 15 | . 1 1 . 2 7 . . 1 1 . 1 1 . . . . Weapon 8 | . 1 . . 1 1 . 3 . . . . . 2 . . . Tool/Special . | . . . . . . . . . . . . . . . . . Average Slot Usage (%) 89 | . 95 100 100 99 98 96 99 90 95 88 92 86 90 79 83 66 Engine 5 | . 14 14 14 13 6 7 7 6 7 5 1 3 . . . . Core 4 | . . . . . 2 5 7 6 4 4 9 6 10 5 . . Reactor 1 | . . . . . . . . . . . . . . 4 10 8 Treads 19 | . 28 28 28 27 25 22 23 20 22 17 21 18 15 9 15 9 Device 11 | . . . . . 4 13 15 17 18 11 11 14 15 18 15 18 Storage 8 | . 14 14 14 14 12 7 7 6 6 5 5 5 9 6 10 6 Processor 7 | . 10 14 14 14 15 7 7 6 6 5 5 5 5 4 . . Hackware 3 | . . . . . . . . . 2 5 5 5 5 9 5 1 Protection 2 | . . . . . 3 6 7 6 4 5 5 5 4 . 5 2 Energy Gun 1 | . . . . . 8 4 . . . . . . . . . 1 Energy Cannon 3 | . 5 14 14 13 4 . . . . . . . . . . . Ballistic Gun 12 | . 22 14 14 14 8 7 5 . . 5 7 11 15 14 14 16 Ballistic Cannon 5 | . . . . . . 8 16 20 18 17 14 8 5 4 5 . Peak Build Rating 105 | 6 9 9 9 13 32 41 41 43 47 53 61 72 82 105 102 98 Average Rating 48 | 5 7 8 9 10 25 39 40 41 43 51 56 69 78 78 98 68 On Entrance 41 | . 6 9 9 9 12 32 41 39 43 47 53 61 72 82 102 96 Avg Prop Armor Cover (%) 16 | . . . . . . . . . . . . . 17 . 7 . Naked Turns 50 | . . . . . . . . . . . . . . 3 . 47 Heaviest Build 155 | 12 30 28 28 32 40 65 57 58 68 75 75 94 87 155 155 155 Greatest Support 178 | 40 40 40 40 40 62 62 62 62 82 86 112 112 96 178 178 178 Greatest Overweight (x) 4 | 1 . . . 1 . 1 . . 1 1 1 1 4 4 1 4 Average Overweight (x) . | . . . . . . . . . . . . . 1 . . 1 Largest Inventory Capacity 25 | 8 15 15 15 15 15 15 15 15 15 15 25 25 15 25 25 25 Average Capacity 15 | 7 14 15 15 15 15 15 15 15 15 15 15 15 15 16 25 23 Most Carried 25 | 3 15 15 15 15 15 15 15 15 15 15 15 18 15 17 16 25 Average Carried 13 | 2 10 14 14 14 14 14 14 15 14 14 14 14 14 12 15 15 Final Capacity 25 | 8 15 15 15 15 15 15 15 15 15 15 15 15 15 25 25 5 Final Carried 16 | 3 15 15 15 13 15 15 15 15 15 15 15 15 15 16 14 2 Class Distribution -------------------- 31% | Scavenger-Gunner 26% | Mutant 11% | Hacker-Gunner 11% | Gunner 8% | Scavenger-Tank 3% | Hacker-Tank Dominant Class ---------------- Mutant | -10/Materials Mutant | -10/Mines Mutant | -10/Exiles Mutant | -9/Mines Gunner | -8/Materials Tank | -7/Factory Scientist-Tank | -7/DSF Gunner | -6/Factory Gunner | -6/Extension Scavenger-Gunner | -5/Factory Scavenger-Gunner | -5/Garrison Scavenger-Gunner | -4/Factory Scavenger-Gunner | -4/Upper Caves Hacker-Gunner | -4/Upper Caves Scavenger-Tank | -4/Warlord Scavenger-Tank | -3/Proximity Caves Resources | -11 -10 -10 -10 -9 -8 -7 -7 -6 -6 -5 -5 -4 -4 -4 -4 -3 ----------- Run | Yrd Mat Min Exi Min Mat Fac DSF Fac Ext Fac Gar Fac Upp Upp War Pro Matter Collected 7463 | 284 556 376 3 249 713 60 308 . 364 313 650 905 483 1244 32 923 Remotely . | . . . . . . . . . . . . . . . . . Salvage Created 9486 | 92 542 642 . 505 1610 95 292 . 506 211 397 1892 261 1527 71 843 Parts 369 | 3 37 29 . 21 70 5 11 . 20 11 9 49 9 54 . 41 Haulers Intercepted 9 | . . . . . 6 1 . . 1 . . 1 . . . . Recyclers Shooed 9 | . 2 1 . . 2 . . . 2 . . 2 . . . . Parts Field Recycled . | . . . . . . . . . . . . . . . . . Retrieved Matter . | . . . . . . . . . . . . . . . . . Parts Self-Destructed 102 | . . . . . . . . . . . . . 9 51 . 42 Prevented 5 | . . . . . . . . . . . . . . 3 . 2 Parts Restored . | . . . . . . . . . . . . . . . . . Kills | -11 -10 -10 -10 -9 -8 -7 -7 -6 -6 -5 -5 -4 -4 -4 -4 -3 ------- Run | Yrd Mat Min Exi Min Mat Fac DSF Fac Ext Fac Gar Fac Upp Upp War Pro Combat Hostiles Destroyed 147 | . 16 4 . 16 26 . 10 . 3 6 2 21 6 22 1 14 Guns 94 | . 12 . . 7 20 . 1 . . 2 2 15 5 16 1 13 Cannons 39 | . . 4 . 5 2 . 9 . 3 4 . 6 1 4 . 1 AOE 14 | . 4 . . 4 4 . . . . . . . . 2 . . Classes Destroyed 20 | 2 4 3 . . 3 . 2 . 1 . . 3 1 1 . . Worker 11 | 1 3 3 . . 2 . . . 1 . . 1 . . . . Builder 6 | . . 1 . 1 2 . . . . . . 2 . . . . Tunneler 2 | . . 1 . 1 . . . . . . . . . . . . Hauler 9 | . . . . . 6 1 . . 1 . . 1 . . . . Recycler 18 | 1 1 4 . 1 2 1 . . 2 . . 6 . . . . Minesweeper 2 | . . . . . . . . . . . . . 1 1 . . Mechanic 3 | . 1 . . 1 1 . . . . . . . . . . . Operator 1 | . . . . . . . . . 1 . . . . . . . Watcher 9 | . 2 . . . 4 . . . 1 . . 2 . . . . Swarmer 33 | . 9 . . . 3 . 3 . . 3 . 4 . 6 . 5 Grunt 60 | . 7 2 . 6 18 . 3 . . 1 1 6 . 10 . 6 Brawler 1 | . . . . . . . . . . . . 1 . . . . Duelist 1 | . . . . . . . . . . . . 1 . . . . Sentry 18 | . . . . . 4 . . . 3 2 1 3 . 3 . 2 Specialist 3 | . . . . . . . 3 . . . . . . . . . Hunter 9 | . . . . . 1 . . . . . . 3 2 2 . 1 Programmer 3 | . . . . . . . . . . . . 3 . . . . Heavy 1 | . . . . . . . 1 . . . . . . . . . Behemoth 1 | . . . . . . . . . . . . . . 1 . . Packrat 3 | . . . . . . . . . . . . . . 3 . . Assembled 16 | . . 2 . 10 . . . . . . . . 4 . . . Thug 1 | . . . . . . . . . . . . . . . 1 . Best Kill Streak 10 | 1 3 4 . 5 10 1 10 . 3 3 1 10 3 5 1 10 Combat Bots Only 10 | . 3 2 . 5 7 . 10 . 1 3 1 4 3 5 1 10 Max Kills in Single Turn 4 | 1 2 2 . 2 4 1 2 . 1 2 1 3 1 2 1 2 Gunslinging 1 | . . . . . 1 . . . . . . . . . . 1 Exploded 3 | . 2 . . 2 3 . . . . . . . . 2 . . Melee . | . . . . . . . . . . . . . . . . . Uniques/NPCs Destroyed . | . . . . . . . . . . . . . . . . . Combat | -11 -10 -10 -10 -9 -8 -7 -7 -6 -6 -5 -5 -4 -4 -4 -4 -3 -------- Run | Yrd Mat Min Exi Min Mat Fac DSF Fac Ext Fac Gar Fac Upp Upp War Pro Hostile Shots Fired 1435 | . 96 13 . 64 145 . 61 . 81 10 . 152 30 265 88 430 Missed 457 | . 31 3 . 14 33 . 23 . 28 4 . 47 15 76 32 151 Hits 978 | . 65 10 . 50 112 . 38 . 53 6 . 105 15 189 56 279 Melee 12 | . . 2 . 2 . . . . . . . . 3 . . 5 Projectile 966 | . 65 8 . 48 112 . 38 . 53 6 . 105 12 189 56 274 Critical Strikes 50 | . . . . 3 4 . 3 . 3 . . 5 1 15 3 13 Part Disruptions 4 | . . . . 2 . . . . . . . . . . 2 . Damage Taken 12895 | . 474 113 . 562 1297 . 358 14 853 70 24 1506 252 3165 620 3587 Core 1539 | . 63 . . 120 110 . 27 . 69 . . 33 18 291 46 762 Absorbed by Shields 716 | . . . . . . . 140 5 277 25 9 . . 219 . 41 Redirected to Shielding 76 | . . . . . . . 36 . . . . . 40 . . . Ignored by Resistances 4985 | . 153 33 . 168 379 . 149 5 310 25 . 509 70 1036 360 1788 Regen/Repaired (Parts) 159 | . . . . . . 159 . . . . . . . . . . Core Remaining (%) 82 | 100 . . . 26 80 . 96 . 91 . 100 . . . . . Volleys Fired 527 | 4 47 31 . 39 82 4 18 16 22 9 47 56 19 68 3 62 Largest 4 | 2 2 2 . 2 3 3 3 3 3 4 4 4 4 4 4 4 Hottest 201 | 40 50 80 . 93 197 164 100 111 111 148 148 155 148 162 135 201 Shots Fired 1468 | 8 89 63 1 67 205 12 54 48 62 34 113 216 58 237 12 189 Gun 965 | 8 86 32 . 42 148 8 18 . 6 9 54 120 49 189 9 187 Cannon 475 | . . 31 1 21 42 4 36 48 55 25 59 96 9 43 3 2 Launcher 28 | . 3 . . 4 15 . . . 1 . . . . 5 . . Special . | . . . . . . . . . . . . . . . . . Kinetic 1249 | 8 86 32 . 42 82 7 54 48 61 34 113 216 58 232 12 164 Thermal 179 | . . 31 1 21 108 5 . . . . . . . . . 13 Explosive 23 | . 3 . . 4 15 . . . 1 . . . . . . . Electromagnetic 17 | . . . . . . . . . . . . . . 5 . 12 Robot Hit Streak 51 | 3 11 11 . 13 26 13 29 . 13 17 24 51 16 35 4 15 Robot Miss Streak 8 | 1 3 3 . 2 2 1 2 . 2 8 2 3 2 2 1 3 Penetration Max 1 | . . . . . . . . . . . . 1 . 1 . . Secondary Targets 12 | . 1 . . 1 1 . . . . . . 1 . 4 . 4 Max Gunslinging Chain 1 | . 1 . . 1 1 . . . . . . 1 . 1 . 1 Shots Hit Robots 1009 | 4 63 38 . 45 161 9 42 . 46 17 61 150 40 184 4 145 Core Hits 489 | 3 31 19 . 31 82 4 38 . 29 11 25 72 16 63 2 63 Critical Kills 5 | . . . . . 1 . . . . . 1 1 . 2 . . Critical Parts Destroyed 8 | . . . . . . . . . . . 1 3 1 2 . 1 Critical Strikes 25 | . . . . . 3 1 . . 1 . 3 7 2 6 . 2 Burn 4 | . . . . . 2 1 . . . . . . . . . 1 Destroy 13 | . . . . . 1 . . . . . 2 4 1 4 . 1 Blast 8 | . . . . . . . . . 1 . 1 3 1 2 . . Melee Attacks . | . . . . . . . . . . . . . . . . . Impact . | . . . . . . . . . . . . . . . . . Slashing . | . . . . . . . . . . . . . . . . . Piercing . | . . . . . . . . . . . . . . . . . Sneak Attacks . | . . . . . . . . . . . . . . . . . Combat Hostiles . | . . . . . . . . . . . . . . . . . Follow-up Attacks . | . . . . . . . . . . . . . . . . . Damage Inflicted 23948 | 48 1048 615 . 1023 3857 193 1056 . 1394 464 1365 5100 864 4284 115 2522 Guns 13817 | 48 791 196 . 481 2192 101 250 . 86 156 673 2435 671 3198 83 2456 Cannons 7370 | . . 419 . 278 707 91 806 . 1086 308 659 1910 193 815 32 66 Explosions 2542 | . 257 . . 251 932 . . . 204 . . 663 . 235 . . Melee . | . . . . . . . . . . . . . . . . . Ramming 219 | . . . . 13 26 1 . . 18 . 33 92 . 36 . . Kinetic 18221 | 48 791 196 . 481 1063 115 1056 . 1150 464 1332 4345 864 4013 115 2188 Thermal 3467 | . . 419 . 278 1836 77 . . . . . 663 . . . 194 Explosive 1644 | . 257 . . 251 932 . . . 204 . . . . . . . Electromagnetic 375 | . . . . . . . . . . . . . . 235 . 140 Impact 22 | . . . . . . . . . 22 . . . . . . . Slashing . | . . . . . . . . . . . . . . . . . Piercing . | . . . . . . . . . . . . . . . . . Highest Corruption 13 | . 1 1 1 1 . . . . 4 . 1 2 4 4 2 13 Average Corruption 2 | . 1 1 1 1 . . . . 1 . 1 1 2 3 2 4 Corruption Purged 4 | . . . . . . . . . . . . . . 4 . . Corruption Blocked . | . . . . . . . . . . . . . . . . . Effects 144 | . 3 6 10 2 . . . . 2 . 12 6 32 45 . 26 Message Errors 40 | . 2 3 1 . . . . . 1 . 2 4 10 13 . 4 Matter Fused 28 | . 1 . 1 . . . . . . . 4 1 8 8 . 5 Heat Flow Errors 18 | . . . 2 2 . . . . . . 1 . 3 6 . 4 Energy Discharges 14 | . . . . . . . . . 1 . . . 3 5 . 5 Parts Rejected 4 | . . 1 . . . . . . . . . . . 1 . 2 Parts Fused 3 | . . . . . . . . . . . . . 1 2 . . Data Loss (minor) 19 | . . 1 5 . . . . . . . 3 . 3 4 . 3 Data Loss (major) 3 | . . . . . . . . . . . . 1 1 1 . . Misfires 6 | . . 1 1 . . . . . . . . . 2 2 . . Alerts 3 | . . . . . . . . . . . 1 . 1 1 . . Misdirections 3 | . . . . . . . . . . . . . . . . 3 Weapon Failures 3 | . . . . . . . . . . . 1 . . 2 . . Overload Shots . | . . . . . . . . . . . . . . . . . Overflow Damage 400 | . 24 10 . 3 60 . . . 11 . . 253 . 39 . . Projectiles 232 | . . 10 . . 30 . . . 11 . . 164 . 17 . . Explosions 168 | . 24 . . 3 30 . . . . . . 89 . 22 . . Melee . | . . . . . . . . . . . . . . . . . Knockbacks 38 | . . . . . . . 9 . 3 . 6 13 2 5 . . Impact 2 | . . . . . . . . . . . . 1 . 1 . . Kinetic 35 | . . . . . . . 8 . 3 . 6 12 2 4 . . Secondary 1 | . . . . . . . 1 . . . . . . . . . Self-Inflicted Damage 131 | . . . . 29 29 . . 19 . . 33 . . 21 . . Shots 7 | . . . . 2 3 . . 1 . . . . . 1 . . Rammed 18 | . . . . 3 3 1 . . 2 . . 6 . 3 . . Targets Rammed 19 | . . . . 3 4 1 . . 2 . . 6 . 3 . . Kicked . | . . . . . . . . . . . . . . . . . Crushed 1 | . . . . . 1 . . . . . . . . . . . Highest Temperature 531 | . 2 72 185 276 531 180 14 255 327 350 284 423 243 233 263 390 Average Temperature 99 | . 2 23 83 55 145 84 6 92 97 143 87 127 73 56 85 114 Received Heat Transfer 3471 | . 174 24 . 295 810 . 73 . 510 12 . 321 60 723 27 442 Effects 27 | . . . . 1 9 . . 3 4 2 4 3 . . . 1 Shutdowns 6 | . . . . . 4 . . . . . . 2 . . . . Energy Bleed 7 | . . . . 1 3 . . . 2 . 1 . . . . . Interference 12 | . . . . . 2 . . 3 2 2 3 . . . . . Matter Decay 1 | . . . . . . . . . . . . 1 . . . . Damage (minor) 1 | . . . . . . . . . . . . . . . . 1 Siege Activations . | . . . . . . . . . . . . . . . . . Martial Activations . | . . . . . . . . . . . . . . . . . Shielding Activations . | . . . . . . . . . . . . . . . . . Robots Disrupted 2 | . . . . . . . . . . . . . . . . 2 Combat Hostiles 2 | . . . . . . . . . . . . . . . . 2 Robots Corrupted . | . . . . . . . . . . . . . . . . . Combat Hostiles . | . . . . . . . . . . . . . . . . . Parts Fried . | . . . . . . . . . . . . . . . . . Impact Corruptions . | . . . . . . . . . . . . . . . . . Robots Melted 1 | . . . . . 1 . . . . . . . . . . . Combat Hostiles . | . . . . . . . . . . . . . . . . . Parts Melted 13 | . . 1 . 1 7 . . . . . . . . 1 . 3 Heat Transferred 6169 | . . 888 . 592 3404 235 . . . . . 500 . . . 550 Parts Sabotaged . | . . . . . . . . . . . . . . . . . Parts Stolen . | . . . . . . . . . . . . . . . . . Parts Stripped . | . . . . . . . . . . . . . . . . . Power Chain Reactions . | . . . . . . . . . . . . . . . . . Alert | -11 -10 -10 -10 -9 -8 -7 -7 -6 -6 -5 -5 -4 -4 -4 -4 -3 ------- Run | Yrd Mat Min Exi Min Mat Fac DSF Fac Ext Fac Gar Fac Upp Upp War Pro Maximum Alert Level 3 | . 1 . . . . . 1 1 1 1 3 3 . . . . Low Security (%) 67 | 100 63 100 . 100 100 100 67 86 94 92 1 . . . . . Level 1 12 | . 36 . . . . . 32 13 5 7 41 . . . . . Level 2 7 | . . . . . . . . . . . 30 28 . . . . Level 3 11 | . . . . . . . . . . . 26 71 . . . . Level 4 . | . . . . . . . . . . . . . . . . . Level 5 . | . . . . . . . . . . . . . . . . . High Security . | . . . . . . . . . . . . . . . . . Max Security . | . . . . . . . . . . . . . . . . . Sterilizations 1 | . . . . . . . 1 . . . . . . . . . Peak Influence 1059 | 5 266 30 . 94 165 41 255 220 251 205 1059 890 . . . . Initial 481 | . . 21 . . . 41 1 115 70 100 114 481 . . . . Average 207 | . 134 3 . 16 75 4 117 160 52 161 534 709 . . . . Influence Increases 5714 | 10 525 100 . 280 841 17 254 252 481 235 955 789 60 580 . 335 Destroy 0b10 Robot/C 2920 | . 320 40 . 180 520 . 200 . 280 160 40 420 40 440 . 280 Destroy 0b10 Robot/NC 370 | 10 35 60 . 20 85 10 . . 45 . 30 60 10 5 . . Destroy Leader 456 | . 74 . . 30 110 2 30 . 44 30 . 86 10 30 . 10 Allied During Kill 81 | . . . . 2 . . . . 74 5 . . . . . . Successful Hack 59 | . . . . . 7 5 . 4 33 . 10 . . . . . Disable Machine 225 | . . . . . 9 . 9 126 . . . 81 . . . . Anti-Garrison Action 800 | . . . . . . . . . . . 800 . . . . . Destroy Structure 458 | . 21 . . 33 80 . . 122 5 10 75 112 . . . . Lose Combat Pursuer 345 | . 75 . . 15 30 . 15 . . 30 . 30 . 105 . 45 Influence Decreases 5714 | 10 459 166 . 280 733 121 3 340 409 289 81 1068 840 495 85 335 Entered New Map 1575 | . . 45 . . . 67 3 140 97 139 71 578 350 . 85 . Time Decay 3603 | 10 459 121 . 200 673 54 . 200 251 100 . 470 470 395 . 200 Lost Part 425 | . . . . 50 60 . . . 20 10 10 20 20 100 . 135 Lost Ally 111 | . . . . 30 . . . . 41 40 . . . . . . Squads Dispatched 20 | . 4 . . 1 1 3 2 . 3 2 . 3 . 1 . . Investigation 8 | . 4 . . . . 2 . . 1 . . . . 1 . . Extermination 1 | . . . . . . . . . . . . 1 . . . . Reinforcement 7 | . . . . . 1 1 2 . 2 . . 1 . . . . Assault 2 | . . . . 1 . . . . . . . 1 . . . . Garrison 2 | . . . . . . . . . . 2 . . . . . . Intercept . | . . . . . . . . . . . . . . . . . Searches Triggered . | . . . . . . . . . . . . . . . . . Construction Impeded 3 | . . . . . 1 . . . 2 . . . . . . . Haulers Reinforced 2 | . . . . . . 1 . . . . . 1 . . . . Active Scanning Responses . | . . . . . . . . . . . . . . . . . Cargo Convoy Interrupts . | . . . . . . . . . . . . . . . . . Stealth | -11 -10 -10 -10 -9 -8 -7 -7 -6 -6 -5 -5 -4 -4 -4 -4 -3 --------- Run | Yrd Mat Min Exi Min Mat Fac DSF Fac Ext Fac Gar Fac Upp Upp War Pro Distress Signals 4 | . . . . . 2 . . . 2 . . . . . . . Communications Jammed . | . . . . . . . . . . . . . . . . . Distress Signals . | . . . . . . . . . . . . . . . . . Times Spotted 223 | . 23 4 . 30 38 . 10 1 16 8 . 24 8 26 3 32 Peak Tracking Total 11 | . 4 1 . 10 5 . 4 1 5 5 . 4 2 11 3 11 Tactical Retreats 22 | . 3 . . 3 1 . 1 . . 1 . 2 2 7 . 2 Traps | -11 -10 -10 -10 -9 -8 -7 -7 -6 -6 -5 -5 -4 -4 -4 -4 -3 ------- Run | Yrd Mat Min Exi Min Mat Fac DSF Fac Ext Fac Gar Fac Upp Upp War Pro Traps Triggered 9 | . 2 . . . . 1 1 . 2 . . . . . 3 . Indirectly . | . . . . . . . . . . . . . . . . . Trap Hack Attempts . | . . . . . . . . . . . . . . . . . Triggered . | . . . . . . . . . . . . . . . . . Disarmed . | . . . . . . . . . . . . . . . . . Reprogrammed . | . . . . . . . . . . . . . . . . . Reused . | . . . . . . . . . . . . . . . . . Traps Extracted . | . . . . . . . . . . . . . . . . . Installed . | . . . . . . . . . . . . . . . . . Triggered . | . . . . . . . . . . . . . . . . . Machines | -11 -10 -10 -10 -9 -8 -7 -7 -6 -6 -5 -5 -4 -4 -4 -4 -3 ---------- Run | Yrd Mat Min Exi Min Mat Fac DSF Fac Ext Fac Gar Fac Upp Upp War Pro Machines Disabled 35 | . . . . . 1 . 1 14 2 . 4 9 . 2 1 1 Max in Single Turn 8 | . . . . . 1 . 1 5 1 . 1 8 . 1 1 1 Garrison Relay 4 | . . . . . . . . . . . 4 . . . . . Machines Repaired . | . . . . . . . . . . . . . . . . . Machines Dismantled . | . . . . . . . . . . . . . . . . . Machines Sabotaged . | . . . . . . . . . . . . . . . . . Overloaded Fab Kills . | . . . . . . . . . . . . . . . . . Hacking | -11 -10 -10 -10 -9 -8 -7 -7 -6 -6 -5 -5 -4 -4 -4 -4 -3 --------- Run | Yrd Mat Min Exi Min Mat Fac DSF Fac Ext Fac Gar Fac Upp Upp War Pro Machines Accessed 45 | . 8 . 4 . 5 5 . 2 9 1 3 1 3 3 . 1 Terminals 30 | . 7 . . . 4 2 . 2 9 . 3 . 1 1 . 1 Fabricators 1 | . . . . . . 1 . . . . . . . . . . Repair Stations 1 | . . . . . . 1 . . . . . . . . . . Recycling Units 3 | . 1 . . . 1 . . . . . . 1 . . . . Scanalyzers 1 | . . . . . . 1 . . . . . . . . . . Garrison Access 1 | . . . . . . . . . . 1 . . . . . . Total Hacks 122 | . 28 . 4 . 14 21 . 4 20 2 6 2 9 5 . 7 Successful 67 | . 3 . 4 . 7 17 . 2 10 1 1 1 9 5 . 7 Failed 55 | . 25 . . . 7 4 . 2 10 1 5 1 . . . . Catastrophic 14 | . 9 . . . 3 . . . 1 . 1 . . . . . Database Lockouts . | . . . . . . . . . . . . . . . . . Manual 32 | . 26 . 1 . 3 2 . . . . . . . . . . Terminals 82 | . 27 . . . 11 3 . 4 20 . 6 . 1 3 . 7 Fabricators 2 | . . . . . . 2 . . . . . . . . . . Repair Stations 2 | . . . . . . 2 . . . . . . . . . . Recycling Units 6 | . 1 . . . 3 . . . . . . 2 . . . . Scanalyzers 14 | . . . . . . 14 . . . . . . . . . . Garrison Access 2 | . . . . . . . . . . 2 . . . . . . Terminal Hacks 47 | . 2 . 4 . 6 1 . 2 10 . 1 . 9 5 . 7 Record 28 | . 1 . 4 . . . . . 4 . . . 8 4 . 7 Open Door 8 | . . . . . . . . . 6 . . . 1 1 . . Open DSF 2 | . . . . . . 1 . 1 . . . . . . . . Branch Access Points 1 | . . . . . 1 . . . . . . . . . . . Emergency Access Points 1 | . . . . . . . . . . . 1 . . . . . Alert Level 2 | . . . . . 1 . . 1 . . . . . . . . Locate Traps 1 | . . . . . 1 . . . . . . . . . . . Registered Components 2 | . 1 . . . 1 . . . . . . . . . . . Zone Layout 2 | . . . . . 2 . . . . . . . . . . . Fabricator Hacks 2 | . . . . . . 2 . . . . . . . . . . Network Status 1 | . . . . . . 1 . . . . . . . . . . Build 1 | . . . . . . 1 . . . . . . . . . . Repair Station Hacks 2 | . . . . . . 2 . . . . . . . . . . Scan Component 1 | . . . . . . 1 . . . . . . . . . . Repair 1 | . . . . . . 1 . . . . . . . . . . Recycling Unit Hacks 3 | . 1 . . . 1 . . . . . . 1 . . . . Report Inventory 3 | . 1 . . . 1 . . . . . . 1 . . . . Scanalyzer 12 | . . . . . . 12 . . . . . . . . . . Insert Component 4 | . . . . . . 4 . . . . . . . . . . Analyze 3 | . . . . . . 3 . . . . . . . . . . Retrieve Study 5 | . . . . . . 5 . . . . . . . . . . Garrison Access Hacks 1 | . . . . . . . . . . 1 . . . . . . Unlock Access 1 | . . . . . . . . . . 1 . . . . . . Unauthorized Hacks . | . . . . . . . . . . . . . . . . . Terminals . | . . . . . . . . . . . . . . . . . Fabricators . | . . . . . . . . . . . . . . . . . Repair Stations . | . . . . . . . . . . . . . . . . . Recycling Units . | . . . . . . . . . . . . . . . . . Scanalyzers . | . . . . . . . . . . . . . . . . . Garrison Access . | . . . . . . . . . . . . . . . . . Data Cores Recovered 1 | . . . . . . . . . 1 . . . . . . . Used . | . . . . . . . . . . . . . . . . . Hacking Detections 29 | . 7 . . . 5 5 . 2 5 . 3 . 1 1 . . Full Trace Events 9 | . 6 . . . . 1 . . 1 . . . . 1 . . Feedback Events 1 | . . . . . . . . . 1 . . . . . . . Corruption 1 | . . . . . . . . . 1 . . . . . . . Feedback Blocked . | . . . . . . . . . . . . . . . . . Robot Schematics Acquired . | . . . . . . . . . . . . . . . . . Robots Built . | . . . . . . . . . . . . . . . . . Authchips . | . . . . . . . . . . . . . . . . . Time . | . . . . . . . . . . . . . . . . . Total Robot Build Rating . | . . . . . . . . . . . . . . . . . Part Schematics Acquired 3 | . . . . . . 3 . . . . . . . . . . Parts Built 2 | . . . . . . 2 . . . . . . . . . . Authchips . | . . . . . . . . . . . . . . . . . Time 106 | . . . . . . 106 . . . . . . . . . . Total Part Build Rating 12 | . . . . . . 12 . . . . . . . . . . Part Studies Acquired 5 | . . . . . . 5 . . . . . . . . . . Parts Repaired 1 | . . . . . . 1 . . . . . . . . . . Time 19 | . . . . . . 19 . . . . . . . . . . Parts Recycled . | . . . . . . . . . . . . . . . . . Recycled Matter . | . . . . . . . . . . . . . . . . . Retrieved Matter . | . . . . . . . . . . . . . . . . . Retrieved Components . | . . . . . . . . . . . . . . . . . Parts Scanalyzed 3 | . . . . . . 3 . . . . . . . . . . Part Schematics Acquired 3 | . . . . . . 3 . . . . . . . . . . Parts Damaged . | . . . . . . . . . . . . . . . . . Bothacking | -11 -10 -10 -10 -9 -8 -7 -7 -6 -6 -5 -5 -4 -4 -4 -4 -3 ------------ Run | Yrd Mat Min Exi Min Mat Fac DSF Fac Ext Fac Gar Fac Upp Upp War Pro Used RIF Installer 1 | . . . . . . . . . . . 1 . . . . . Robots Hacked . | . . . . . . . . . . . . . . . . . Non-combat . | . . . . . . . . . . . . . . . . . Combat . | . . . . . . . . . . . . . . . . . Robot Hacks Applied . | . . . . . . . . . . . . . . . . . Relay Couplers Released 18 | . . . . . . . . . . . 18 . . . . . Machine Destruction 18 | . . . . . . . . . . . 18 . . . . . Fabnet Peak Effective % . | . . . . . . . . . . . . . . . . . Robots Rewired . | . . . . . . . . . . . . . . . . . Allies Hacked . | . . . . . . . . . . . . . . . . . Hacks Repelled . | . . . . . . . . . . . . . . . . . Allies | -11 -10 -10 -10 -9 -8 -7 -7 -6 -6 -5 -5 -4 -4 -4 -4 -3 -------- Run | Yrd Mat Min Exi Min Mat Fac DSF Fac Ext Fac Gar Fac Upp Upp War Pro Total Allies 10 | . . . . 3 . . . . 7 . . . . . . . Largest Group 7 | . . . . 2 . . . . 7 3 . . . . . . Highest-Rated Group 338 | . . . . 49 . . . . 338 210 . . . . . . Highest-Rated Ally 159 | . . . . 31 . . . . 159 159 . . . . . . Initial Warlord ECA Mod 9 | . . . . . . . . 9 9 8 8 . . . . . Total Orders . | . . . . . . . . . . . . . . . . . Ally Attacks 124 | . . . . 18 . . . . 97 9 . . . . . . Total Damage 2371 | . . . . 295 . . . . 1908 168 . . . . . . Kills 20 | . . . . 3 . . . . 15 2 . . . . . . Allies Corrupted . | . . . . . . . . . . . . . . . . . Allies Melted . | . . . . . . . . . . . . . . . . . Intel | -11 -10 -10 -10 -9 -8 -7 -7 -6 -6 -5 -5 -4 -4 -4 -4 -3 ------- Run | Yrd Mat Min Exi Min Mat Fac DSF Fac Ext Fac Gar Fac Upp Upp War Pro Active Infowar (turns) . | . . . . . . . . . . . . . . . . . Robot Analysis Total . | . . . . . . . . . . . . . . . . . Derelict Logs Recovered 4 | . . . . . . . . . . . . . 2 2 . . Drone Launches . | . . . . . . . . . . . . . . . . . Drone Recoveries . | . . . . . . . . . . . . . . . . . Exploration | -11 -10 -10 -10 -9 -8 -7 -7 -6 -6 -5 -5 -4 -4 -4 -4 -3 ------------- Run | Yrd Mat Min Exi Min Mat Fac DSF Fac Ext Fac Gar Fac Upp Upp War Pro Turns Passed 17014 | 513 1024 731 1272 858 1541 541 181 401 640 209 1460 952 1998 3348 207 1138 Spaces Moved 7976 | 314 523 380 795 427 638 231 72 226 344 86 705 358 1116 1268 113 380 Core 115 | 14 . . . . . . . . . . . . . 14 . 87 Treads 7505 | 300 523 380 795 427 638 231 72 226 344 86 705 358 760 1254 113 293 Legs . | . . . . . . . . . . . . . . . . . Wheels 356 | . . . . . . . . . . . . . 356 . . . Hover . | . . . . . . . . . . . . . . . . . Flight . | . . . . . . . . . . . . . . . . . Fastest Speed 50 | 50 160 160 160 160 152 155 155 155 155 160 160 160 160 50 160 50 Average Speed 181 | 155 160 160 160 161 155 159 155 155 161 188 189 203 172 232 173 227 Slowest Speed 480 | 160 160 160 160 240 160 240 155 155 195 213 226 240 245 330 250 480 Overloaded Moves . | . . . . . . . . . . . . . . . . . Propulsion Burnouts . | . . . . . . . . . . . . . . . . . Robots Hopped . | . . . . . . . . . . . . . . . . . Potential Cave-ins . | . . . . . . . . . . . . . . . . . Cave-ins Triggered . | . . . . . . . . . . . . . . . . . Exploration Rate (%) 49 | 18 72 53 93 81 47 7 68 7 45 2 99 7 95 93 23 39 Regions Visited 16 Branch Regions 8 Pre-discovered Areas 1 | . . 1 . . . . . . . . . . . . . . Known Exits Taken 2 | . . . . . . 1 . . . 1 . . . . . . Unknown Exits Taken 12 | 1 1 1 1 1 1 . . 1 1 . . 1 1 1 1 . Scrap Searched 10 | . . . . 1 . . . . . . . . 5 3 . 1 Spaces Dug . | . . . . . . . . . . . . . . . . . Terrain Destroyed 407 | . 20 . . 34 84 . . 167 3 4 . 66 7 22 . . Melee . | . . . . . . . . . . . . . . . . . Projectile 64 | . . . . 7 5 . . 1 . 4 . 18 7 22 . . AOE 343 | . 20 . . 27 79 . . 166 3 . . 48 . . . . Terrain Rammed 1 | . . . . . . . . . . . 1 . . . . . Walls Destroyed 1 | . . . . . . . . . . . 1 . . . . . Machines Disabled . | . . . . . . . . . . . . . . . . . Actions | -11 -10 -10 -10 -9 -8 -7 -7 -6 -6 -5 -5 -4 -4 -4 -4 -3 --------- Run | Yrd Mat Min Exi Min Mat Fac DSF Fac Ext Fac Gar Fac Upp Upp War Pro Total 9529 | 328 621 442 798 527 1025 398 102 244 390 116 767 471 1152 1499 117 532 Wait 547 | . 16 28 . 32 208 125 . . 8 16 . 20 3 84 . 7 Move 7959 | 313 522 379 794 426 637 230 71 225 343 85 703 357 1115 1267 112 380 Hop . | . . . . . . . . . . . . . . . . . Pick Up 132 | 5 17 1 2 9 28 11 3 1 . 1 4 6 4 10 . 30 Fast Attach 99 | 4 4 1 . 1 14 5 4 1 7 3 3 7 5 29 . 11 Attach 76 | 2 1 . . 4 9 5 . . 2 1 . 2 1 17 2 30 Detach 17 | . . . . . . 2 . . 3 . 1 2 . 7 . 2 Swap 54 | . 6 . . 5 10 3 . . 1 . 3 7 . 12 . 7 Drop 98 | . 8 2 2 8 33 12 6 1 2 1 5 8 5 2 . 3 Fire 527 | 4 47 31 . 39 82 4 18 16 22 9 47 56 19 68 3 62 Melee . | . . . . . . . . . . . . . . . . . Ram 1 | . . . . . . . . . . . 1 . . . . . Kick . | . . . . . . . . . . . . . . . . . Crush 19 | . . . . 3 4 1 . . 2 . . 6 . 3 . . Escape Stasis . | . . . . . . . . . . . . . . . . . Rewire . | . . . . . . . . . . . . . . . . . Trap . | . . . . . . . . . . . . . . . . . Miscellaneous . | . . . . . . . . . . . . . . . . . Route ------- -11/Scrapyard -10/Materials (discovered 2 exits: [*Mat] / [*Min]) -10/Mines (discovered 2 exits: [*Mat] / *Exi) -10/Exiles (discovered 2 exits: [*Min x2]) -9/Mines (discovered 2 exits: *Mat x2) -8/Materials (discovered 4 exits: *Fac x2 / Sto x2) -7/Factory -7/DSF -6/Factory -6/Extension -5/Factory -5/Garrison (discovered 3 exits: *Fac x3) -4/Factory -4/Upper Caves -4/Upper Caves (discovered 2 exits: *Res / [*War]) -4/Warlord -3/Proximity Caves History --------- Turn | Location | Event 6 | -11/Scrapyard | Discovered new exit (range 16) 514 | -11/Scrapyard | Entered Materials 515 | -10/Materials | Build established: Mutant 1214 | -10/Materials | Derelicts attacked the area 1227 | -10/Materials | Discovered new exit (range 15) 1446 | -10/Materials | Discovered new exit (range 16) 1538 | -10/Materials | Entered Mines 1539 | -10/Mines | Learned location of Storage (-8) 1544 | -10/Mines | Met a Derelict bent on vengeance 1830 | -10/Mines | Discovered new exit (range 8) 1910 | -10/Mines | Found a Scrap Suit stashed away for nefarious purposes 1914 | -10/Mines | Found Scrap Suit 2039 | -10/Mines | Excavation squad dispatched 2039 | -10/Mines | A large section of the Mines collapsed 2261 | -10/Mines | Deemed a non-threat by the Exiles lab entrance 2261 | -10/Mines | Discovered new exit (range 5) 2269 | -10/Mines | Entered Exiles 2269 | -10/Exiles | Found Exiles lab abandoned 2297 | -10/Exiles | Discovered new exit (range 14) 2881 | -10/Exiles | Discovered new exit (range 14) 3541 | -10/Exiles | Entered Mines 3542 | -9/Mines | Met a Derelict testing a Signal Generator 3546 | -9/Mines | Found Signal Generator 3666 | -9/Mines | Discovered new exit (range 6) 4136 | -9/Mines | Assembled infested the area 4141 | -9/Mines | Assisted by a Guerilla fighting off Assembled 4147 | -9/Mines | A weapon hastily lodged in a ceiling crevice suddenly fell to the ground 4200 | -9/Mines | Core integrity fell below 50% 4236 | -9/Mines | Lost 3 parts (1p1n1w) 4369 | -9/Mines | Discovered new exit (range 9) 4399 | -9/Mines | Entered Materials 4399 | -8/Materials | Evolved 4 slots: Propulsion x1, Utility x2, Weapon x1 4698 | -8/Materials | Identified exit to Storage 4970 | -8/Materials | Discovered new exit (range 16) 5210 | -8/Materials | Build established: Gunner 5401 | -8/Materials | Destroyed 7 combat bots 5464 | -8/Materials | Lost 4 parts (1p2n1w) 5872 | -8/Materials | Discovered new exit (range 10) 5940 | -8/Materials | Entered Factory 5940 | -7/Factory | Evolved 2 slots: Power x1, Utility x1 6210 | -7/Factory | Fabricated Imp. Transmission Jammer (x2) 6414 | -7/Factory | Repaired Adv. Treads+ 6481 | -7/Factory | Identified exit to DSF 6481 | -7/Factory | Entered DSF 6504 | -7/DSF | Additional patrols routed to DSF 6574 | -7/DSF | Discovered new exit (range 16) 6618 | -7/DSF | Sterilization system engaged 6634 | -7/DSF | Destroyed 10 combat bots 6638 | -7/DSF | Ambient heat levels rising (+10) 6653 | -7/DSF | Ambient heat levels rising (+10) 6662 | -7/DSF | Entered Factory 6662 | -6/Factory | Evolved 2 slots: Propulsion x1, Utility x1 7043 | -6/Factory | Discovered new exit (range 13) 7063 | -6/Factory | Entered Extension 7122 | -6/Extension | Rescued a captive Derelict 7123 | -6/Extension | Rescued a captive Derelict 7188 | -6/Extension | Rescued A7 7239 | -6/Extension | Rescued a captive Derelict 7240 | -6/Extension | Rescued a captive Derelict 7404 | -6/Extension | Rescued a captive Derelict 7413 | -6/Extension | Rescued a captive Derelict 7533 | -6/Extension | Spotted B-75 Beast 7548 | -6/Extension | Spotted B-75 Beast 7578 | -6/Extension | Allies destroyed B-75 Beast 7587 | -6/Extension | Allies destroyed B-75 Beast 7594 | -6/Extension | Lost 4 parts (1p2n1u) 7611 | -6/Extension | Lost 3 allies 7663 | -6/Extension | Disrupted transfer network 7697 | -6/Extension | Discovered new exit (range 3) 7703 | -6/Extension | Entered Factory 7703 | -5/Factory | Accompanied by 3 allies (A7) 7703 | -5/Factory | Evolved 2 slots: Propulsion x1, Weapon x1 7754 | -5/Factory | Garrison activated, responded to threat 7905 | -5/Factory | Build established: Scavenger-Gunner 7911 | -5/Factory | Identified exit to Garrison 7912 | -5/Factory | Entered Garrison 7912 | -5/Garrison | Discovered recently destroyed garrison 8007 | -5/Garrison | Garrison Relay disabled 8455 | -5/Garrison | Discovered new exit (range 8) 8534 | -5/Garrison | Garrison Relay disabled 8866 | -5/Garrison | Discovered new exit (range 10) 8969 | -5/Garrison | Installed Relay Interface Framework 9035 | -5/Garrison | Garrison Relay disabled 9203 | -5/Garrison | Discovered new exit (range 13) 9262 | -5/Garrison | Garrison Relay disabled 9372 | -5/Garrison | Entered Factory 9372 | -4/Factory | Evolved 2 slots: Utility x2 9769 | -4/Factory | Discovered new exit (range 15) 9872 | -4/Factory | First assault squad dispatched 10324 | -4/Factory | Entered Upper Caves 10328 | -4/Upper Caves | Encountered a Warlord checkpoint 10647 | -4/Upper Caves | Encountered an infested base 10674 | -4/Upper Caves | Learned Extension trap positions 10674 | -4/Upper Caves | Learned Extension terminal intel 10674 | -4/Upper Caves | Learned Extension garrison access intel 11950 | -4/Upper Caves | Found DCF Scrap (15 items) 11996 | -4/Upper Caves | Learned Research terminal intel 12148 | -4/Upper Caves | Learned Research garrison access intel 12274 | -4/Upper Caves | Discovered new exit (range 8) 12322 | -4/Upper Caves | Entered another Upper Caves area 12323 | -4/Upper Caves | Identified exit to Research 12690 | -4/Upper Caves | Found Alien Artifact 12690 | -4/Upper Caves | Identified Dimensional Node Initializer 12690 | -4/Upper Caves | Initialized slip node 12906 | -4/Upper Caves | Learned 4 Research zone layouts 12991 | -4/Upper Caves | Build established: Hacker-Gunner 13063 | -4/Upper Caves | Learned Research non-interactive machine intel 13087 | -4/Upper Caves | Attracted the attention of an 0b10 checkpoint 13274 | -4/Upper Caves | Spotted B-86 Titan 13325 | -4/Upper Caves | Destroyed B-86 Titan 13351 | -4/Upper Caves | Lost 5 parts (1n3u1w) 14260 | -4/Upper Caves | Build established: Hacker-Tank 14596 | -4/Upper Caves | Discovered new exit (range 9) 14609 | -4/Upper Caves | Build established: Hacker-Gunner 15161 | -4/Upper Caves | Attracted the attention of an 0b10 base 15243 | -4/Upper Caves | Released all parts (14) 15263 | -4/Upper Caves | Lost 13 parts (2p1n6u4w) 15405 | -4/Upper Caves | Learned location of 1 exit from Research 15670 | -4/Upper Caves | Entered Warlord 15744 | -4/Warlord | RIF detected upon attempting to enter Warlord's base 15744 | -4/Warlord | Attacked by Warlord forces 15762 | -4/Warlord | Spotted QG-W5G(B) 15762 | -4/Warlord | Spotted WA-3JO(B) 15846 | -4/Warlord | Discovered new exit (range 15) 15877 | -4/Warlord | Entered Proximity Caves 16023 | -3/Proximity Caves | Destroyed 10 combat bots 16028 | -3/Proximity Caves | Lost 5 parts (2n1u2w) 16062 | -3/Proximity Caves | Learned location of 1 exit from Research 16062 | -3/Proximity Caves | Learned Research emergency access door positions 16062 | -3/Proximity Caves | Learned Armory security intel 16214 | -3/Proximity Caves | Attracted the attention of an 0b10 base 16228 | -3/Proximity Caves | Released all parts (15) 16613 | -3/Proximity Caves | Build established: Scavenger-Tank 16940 | -3/Proximity Caves | Core integrity fell below 50% 16940 | -3/Proximity Caves | System corruption reached 10% 16999 | -3/Proximity Caves | Core integrity fell below 20% 17007 | -3/Proximity Caves | Lost 30 parts (5p1n9u15w) 17015 | -3/Proximity Caves | Destroyed by G-67 Veteran with Plasma Rifle Last Messages --------------- Barrage Gun destroyed. Acquired 73 matter. Acquired Corrupted Hpw. Shotgun. Integrated Corrupted Hpw. Shotgun (+3). System corrupted: Matter fused (-8). Penetrated by Slug. Slug penetrates Wall. Hpw. Shotgun destroyed. Acquired 39 matter. Corrupted Imp. Phase Shifter self-destruct mechanism malfunctions. Slug penetrates Wall. Penetrated by Slug. Barrage Gun destroyed. U &EEUU43|JNKJFEF&%QQTVE0L KHDGR Barrage Gun destroyed. Slug penetrates Wall. System corrupted: Barrage Gun rejected. Acquired 49 matter. System corrupted: Component data lost. Map ----- +----------------------------------------------------+ | ?????????????????????????????????????????????????? | | ?????????????????????????????????????????????????? | | ?????????????????????????????????????????????????? | | ?????????????????????????????????????????????????? | | ?????????????????????????????????????????????????? | | ?????????????????????????????????????????????????? | | ?????????????????????????????????????????????????? | | ?????????????????????????????????????????????????? | | #???????????????????? ???????????????????????? | | ##??????????????????? ??????????????????????? | | #??????????????????? #??????????????????????? | | ####???????????????? #??????????????????????? | | #######??????????# #??????????????????????? | | #?????????## #??????????????????????? | | #### #?????????# ##?????????????????????? | | #??# #?????????? #?????????????????????? | | #??# #?????????? ##????????????????????? | | !% #??# ##?????????# ###??????????????????? | | #### #?????????# g ###????????????????? | | # ###########g g ##???????????????? | | ## l #???????????????? | | ?# ## #????????????????? | | ?# ## ######### #?????????????????? | | ?# ## ##???????## #?????????????????? | | ?# ###?????????####### ###?????????????????? | | ?# ##?####???????????#@ ##???????????????????? | | ?## ## #???????????# #????????????????????? | | ??## #??????????? #???????????????????? | | #??# ##?????????? #??????????????????? | | ##?## ###??????? #??????????????????? | | #### #??????? #??????????????????? | | #????? ##??????????????????? | | [ ## ?? ##???????????????????? | | ########?# ? ## ###????????????????????? | | ###?????????# ? ??#???????????????????????? | | ##????????????? ## ? ??????????????????????????? | | #??????????????#??? ??????????????????????????? | | #????????????????? ???????????????????????????? | | #?????????????????# ???????????????????????????? | | #???????????????????#???????????????????????????? | | #???????????????????????????????????????????????? | | #???????????????????????????????????????????????? | | #???????????????????????????????????????????????? | | ##???????????????????????????????????????????????? | | #????????????????????????????????????????????????? | | ?????????????????????????????????????????????????? | | ?????????????????????????????????????????????????? | | ?????????????????????????????????????????????????? | | ?????????????????????????????????????????????????? | | ?????????????????????????????????????????????????? | +----------------------------------------------------+ Best States ------------- Heat Dissipation 100 Energy Generation 39 Energy Capacity 555 Matter Stores 550 Matter Capacity 550 Sight Range 16 Terrain Scan Density 10 Armor Coverage 600 Resistance: KI 45 Resistance: TH 50 Resistance: EX 20 Resistance: EM 20 Resistance: I 20 Resistance: S 20 Resistance: P 20 Utility Shielding 66 Point Defense Rating 80 Weapon Cycling 15 Evasion (%) 50 Targeting Accuracy 11 Recoil Reduction 5 Matter Filtering 65 Particle Charging 15 Offensive Hacking 20 Defensive Hacking 14 Item Schematics ----------------- Adv. Treads | -7/Factory | Scanalyzed Particle Charger | -7/Factory | Scanalyzed Mni. Assault Cannon | -7/Factory | Scanalyzed Robot Schematics ------------------ None Fabricated ------------ Imp. Transmission Jammer | x2 | -7/Factory | Preloaded Repaired ---------- Adv. Treads | 6% | -7/Factory Studied --------- Lgt. Treads | -7/Factory | Hacked Adv. Treads | -7/Factory | Hacked Flak Cannon | -7/Factory | Hacked Plasma Cannon | -7/Factory | Hacked Lgt. Nuclear Core | -7/Factory | Hacked Alien Tech Used ----------------- Dimensional Node Initializer Achievements -------------- Join The Dark Side Prison Break Challenges ------------ None Game ------ Seed ElectrostormDisruptorArchive Manual? 0 Play Time 03:02:13 Cumulative 74.1 hours Start 2025.12.19 @ 20:48:16 End 2025.12.20 @ 00:11:51 Sessions 1 Manual Loads 0 Difficulty Adventurer Special Mode None Game No. 41 Rogue 29 Adventurer 12 Explorer 0 Win Type - Total 0 Types 0/0/0/0/0/0/0/0/0/0 Lore% 20 Gallery% 37 Achievement% 24 Wizard Run 0 Options --------- Layout 1 ASCII 0 Keyboard 0 Movement Mouse Keybinds 0 Fullscreen 1 Font 32/SmallcapsGlow Map View 50x35 Zoom Use 0% Tactical HUD 0 Map Filters NONE Filters NONE Steam 1 RUN: 46c65545-29d8-4d86-a984-652a14f8477d